fUST/lending_fUST_20240409
["ID","MTS","AMOUNT","RATE_DAILY","PERIOD"]
[321948072,1712647843983,-582.51,0.00035616,2]
[321948073,1712647844112,-500.0,0.00035616,2]
[321948074,1712647844122,-1209.87,0.00035616,2]
[321948075,1712647844137,-500.0,0.00035616,2]
[321948076,1712647844146,-500.0,0.00035616,2]
[321948077,1712647844156,-500.0,0.00035616,2]
[321948078,1712647844165,-1182.96,0.00035616,2]
[321948079,1712647844176,-3423.85,0.00035616,2]
[321948080,1712647844187,-500.0,0.00035616,2]
[321948081,1712647844197,-501.44278197,0.00035616,2]
[321948082,1712647844206,-500.0,0.00035616,2]
[321948083,1712647844216,-13819.27,0.00035616,2]
[321948084,1712647844226,-500.0,0.00035616,2]
[321948085,1712647844235,-500.0,0.00035616,2]
[321948086,1712647844245,-500.0,0.00035616,2]
[321948087,1712647844254,-500.0,0.00035616,2]
[321948088,1712647844263,-569.23,0.00035616,2]
[321948089,1712647844273,-5343.66,0.00035616,2]
[321948090,1712647844282,-500.0,0.00035616,2]
[321948091,1712647844292,-500.0,0.00035616,2]
[321948092,1712647844302,-500.0,0.00035616,2]
[321948093,1712647844311,-500.0,0.00035616,2]
[321948094,1712647844320,-500.0,0.00035616,2]
[321948095,1712647844329,-500.91291952,0.00035616,2]
[321948096,1712647844339,-501.09464452,0.00035616,2]
[321948098,1712647844349,-164.8734558,0.00035616,2]
[321948100,1712647844359,-500.0,0.00035616,2]
[321948102,1712647844368,-209.92810678,0.00035616,2]
[321948104,1712647844377,-752.41,0.00035616,2]
[321948106,1712647844387,-500.0,0.00035616,2]
[321948108,1712647844396,-190.39462141,0.00035616,2]
[321948110,1712647844406,-500.0,0.00035616,2]
[321948111,1712647844415,-500.0,0.00035616,2]
[321948112,1712647844424,-500.0,0.00035616,2]
[321948113,1712647844436,-500.0,0.00035616,2]
[321948114,1712647844445,-1700.2,0.00035616,2]
[321948115,1712647844454,-500.0,0.00035616,2]
[321948116,1712647844463,-500.0,0.00035616,2]
[321948117,1712647844473,-500.0,0.00035616,2]
[321948118,1712647844482,-500.0,0.00035616,2]
[321948119,1712647844491,-502.23,0.00035616,2]
[321948120,1712647844501,-500.0,0.00035616,2]
[321948122,1712647844510,-2026.45,0.00035616,2]
[321948123,1712647844519,-500.0,0.00035616,2]
[321948124,1712647844528,-500.0,0.00035616,2]
[321948126,1712647844537,-534.11755053,0.00035616,2]
[321948128,1712647844545,-500.0,0.00035616,2]
[321948130,1712647844554,-500.0,0.00035616,2]
[321948132,1712647844563,-500.0,0.00035616,2]
[321948133,1712647844572,-212.30960521,0.00035616,2]
[321948135,1712647844582,-560.87,0.00035616,2]
[321948138,1712647844591,-500.0,0.00035616,2]
[321948140,1712647844601,-500.0,0.00035616,2]
[321948142,1712647844610,-500.0,0.00035616,2]
[321948144,1712647844619,-153.0,0.00035633,2]
[321948146,1712647844628,-153.0,0.000357,2]
[321948148,1712647844637,-153.0,0.000357,2]
[321948149,1712647844646,-397.22395761,0.00035761,7]
[321948151,1712647844655,-403.36778013,0.00035802,2]
[321948154,1712647844664,-519.36281964,0.00035888,5]
[321948155,1712647844673,-500.0,0.00035888,5]
[321948157,1712647844683,-500.0,0.00035888,5]
[321948160,1712647844693,-1013.10269998,0.00035889,4]
[321948161,1712647844702,-500.0,0.00035889,5]
[321948163,1712647844712,-500.0,0.00035889,5]
[321948166,1712647844721,-500.0,0.00035889,5]
[321948168,1712647844731,-500.0,0.00035889,5]
[321948170,1712647844740,-500.0,0.00035889,5]
[321948172,1712647844749,-500.0,0.00035889,5]
[321948174,1712647844758,-500.0,0.00035889,5]
[321948176,1712647844767,-500.0,0.00035889,5]
[321948178,1712647844776,-500.0,0.00035889,5]
[321948179,1712647844785,-500.0,0.00035889,5]
[321948182,1712647844795,-500.0,0.00035889,5]
[321948184,1712647844808,-253.35318822,0.00035889,2]
[321948186,1712647844817,-254.35963097,0.00035889,2]
[321948188,1712647844827,-500.0,0.0003589,5]
[321948190,1712647844835,-500.0,0.0003589,5]
[321948192,1712647844844,-500.0,0.0003589,5]
[321948194,1712647844853,-535.46711863,0.0003589,5]
[321948196,1712647844862,-500.0,0.0003589,5]
[321948198,1712647844872,-500.0,0.0003589,5]
[321948200,1712647844881,-592.07022979,0.0003589,5]
[321948202,1712647844890,-500.0,0.0003589,5]
[321948204,1712647844899,-500.0,0.0003589,5]
[321948206,1712647844908,-500.0,0.0003589,5]
[321948208,1712647844917,-500.0,0.0003589,5]
[321948210,1712647844926,-500.0,0.0003589,5]
[321948212,1712647844937,-500.0,0.0003589,5]
[321948214,1712647844946,-500.0,0.0003589,5]
[321948216,1712647844955,-500.0,0.0003589,5]
[321948218,1712647844964,-500.0,0.0003589,5]
[321948220,1712647844973,-336.70695733,0.0003589,5]
[321948222,1712647844982,-797.16,0.0003589,5]
[321948224,1712647844991,-500.0,0.0003589,5]
[321948226,1712647845000,-500.0,0.0003589,5]
[321948228,1712647845009,-500.0,0.0003589,5]
[321948230,1712647845020,-500.0,0.0003589,5]
[321948232,1712647845029,-500.0,0.0003589,5]
[321948234,1712647845039,-500.0,0.0003589,5]
[321948236,1712647845048,-500.0,0.0003589,5]
[321948239,1712647845058,-500.0,0.0003589,5]
[321948242,1712647845067,-500.0,0.0003589,5]
[321948245,1712647845077,-500.0,0.0003589,5]
[321948248,1712647845087,-500.0,0.0003589,5]
[321948251,1712647845096,-500.0,0.0003589,5]
[321948254,1712647845106,-500.0,0.0003589,5]
[321948257,1712647845117,-500.0,0.0003589,5]
[321948260,1712647845129,-500.0,0.0003589,5]
[321948263,1712647845139,-500.81627046,0.0003589,5]
[321948266,1712647845149,-500.81484132,0.0003589,5]
[321948269,1712647845161,-500.0,0.0003589,5]
[321948270,1712647845170,-390.36034507,0.0003589,5]
[321948272,1712647845182,-500.0,0.0003589,5]
[321948275,1712647845193,-500.0,0.0003589,5]
[321948277,1712647845202,-447.50773548,0.0003589,5]
[321948280,1712647845211,-500.0,0.0003589,5]
[321948283,1712647845221,-500.0,0.0003589,5]
[321948285,1712647845231,-500.0,0.0003589,5]
[321948287,1712647845241,-500.0,0.0003589,5]
[321948289,1712647845250,-500.0,0.0003589,5]
[321948291,1712647845259,-500.0,0.0003589,5]
[321948293,1712647845269,-500.0,0.0003589,5]
[321948295,1712647845279,-501.68955675,0.0003589,5]
[321948297,1712647845288,-835.92,0.0003589,2]
[321948300,1712647845297,-501.35032413,0.0003589,5]
[321948303,1712647845306,-500.0,0.0003589,5]
[321948306,1712647845315,-500.0,0.0003589,5]
[321948309,1712647845324,-500.0,0.0003589,5]
[321948312,1712647845333,-603.85991666,0.0003589,5]
[321948315,1712647845342,-500.0,0.0003589,5]
[321948318,1712647845352,-500.0,0.0003589,5]
[321948322,1712647845362,-525.74,0.0003589,5]
[321948325,1712647845371,-684.42,0.0003589,5]
[321948329,1712647845380,-505.76854224,0.0003589,5]
[321948333,1712647845389,-500.0,0.0003589,5]
[321948336,1712647845398,-503.37786384,0.0003589,5]
[321948339,1712647845408,-291.49532115,0.0003589,5]
[321948342,1712647845417,-500.0,0.0003589,5]
[321948346,1712647845426,-407.9210973,0.0003589,5]
[321948350,1712647845438,-500.0,0.0003589,5]
[321948354,1712647845446,-500.0,0.0003589,5]
[321948357,1712647845455,-500.0,0.0003589,5]
[321948360,1712647845464,-500.0,0.0003589,5]
[321948363,1712647845473,-500.0,0.0003589,5]
[321948367,1712647845482,-500.0,0.0003589,5]
[321948369,1712647845491,-501.8161998,0.0003589,5]
[321948372,1712647845503,-500.0,0.0003589,5]
[321948374,1712647845512,-500.0,0.0003589,5]
[321948376,1712647845523,-618.22,0.0003589,5]
[321948378,1712647845531,-547.7,0.0003589,5]
[321948380,1712647845542,-500.0,0.0003589,5]
[321948382,1712647845551,-500.0,0.0003589,5]
[321948383,1712647845560,-381.13798679,0.0003589,5]
[321948385,1712647845569,-1403.92,0.0003589,5]
[321948387,1712647845579,-500.0,0.0003589,5]
[321948389,1712647845588,-500.0,0.0003589,5]
[321948391,1712647845597,-500.0,0.0003589,5]
[321948392,1712647845606,-504.83851575,0.0003589,5]
[321948393,1712647845615,-500.0,0.0003589,5]
[321948394,1712647845625,-647.24,0.0003589,5]
[321948395,1712647845634,-500.0,0.0003589,5]
[321948396,1712647845643,-500.0,0.0003589,5]
[321948397,1712647845652,-500.0,0.0003589,5]
[321948398,1712647845661,-500.0,0.0003589,5]
[321948399,1712647845671,-500.0,0.0003589,5]
[321948400,1712647845681,-799.03,0.0003589,5]
[321948401,1712647845689,-500.0,0.0003589,5]
[321948402,1712647845700,-501.71978551,0.0003589,5]
[321948403,1712647845708,-520.27,0.0003589,5]
[321948404,1712647845718,-500.0,0.0003589,5]
[321948405,1712647845727,-500.0,0.0003589,5]
[321948406,1712647845736,-500.0,0.0003589,5]
[321948407,1712647845745,-500.0,0.0003589,5]
[321948408,1712647845754,-500.0,0.0003589,5]
[321948410,1712647845763,-500.0,0.0003589,5]
[321948412,1712647845772,-500.0,0.0003589,5]
[321948414,1712647845782,-500.0,0.0003589,5]
[321948416,1712647845791,-670.95,0.0003589,5]
[321948417,1712647845800,-1078.43,0.0003589,5]
[321948418,1712647845809,-500.0,0.0003589,5]
[321948419,1712647845818,-2328.95,0.0003589,5]
[321948420,1712647845827,-500.0,0.0003589,5]
[321948421,1712647845837,-948.4,0.0003589,5]
[321948422,1712647845847,-500.0,0.0003589,5]
[321948423,1712647845856,-500.0,0.0003589,5]
[321948424,1712647845865,-602.76359374,0.0003589,5]
[321948425,1712647845874,-785.42,0.0003589,5]
[321948426,1712647845884,-500.0,0.0003589,5]
[321948427,1712647845893,-500.0,0.0003589,5]
[321948428,1712647845902,-500.0,0.0003589,5]
[321948429,1712647845912,-500.0,0.0003589,5]
[321948430,1712647845921,-500.0,0.0003589,5]
[321948431,1712647845930,-500.0,0.0003589,5]
[321948432,1712647845939,-849.98,0.0003589,5]
[321948433,1712647845948,-500.0,0.0003589,5]
[321948434,1712647845958,-500.0,0.0003589,5]
[321948435,1712647845967,-500.0,0.0003589,5]
[321948436,1712647845976,-185.44801192,0.0003589,5]
[321948437,1712647845985,-1559.31,0.0003589,5]
[321948438,1712647845994,-500.0,0.0003589,5]
[321948439,1712647846003,-500.0,0.0003589,5]
[321948440,1712647846012,-500.0,0.0003589,5]
[321948441,1712647846021,-500.0,0.0003589,5]
[321948442,1712647846030,-385.71744118,0.0003589,5]
[321948443,1712647846040,-502.89443875,0.0003589,5]
[321948444,1712647846049,-501.97,0.0003589,5]
[321948445,1712647846058,-500.0,0.0003589,5]
[321948446,1712647846067,-500.0,0.0003589,5]
[321948447,1712647846077,-500.0,0.0003589,5]
[321948448,1712647846086,-500.0,0.0003589,5]
[321948449,1712647846095,-502.60549485,0.0003589,5]
[321948450,1712647846104,-500.0,0.0003589,5]
[321948451,1712647846113,-500.0,0.0003589,5]
[321948452,1712647846209,-500.0,0.0003589,5]
[321948453,1712647846218,-3071.26,0.0003589,5]
[321948455,1712647846229,-5313.74,0.0003589,5]
[321948456,1712647846239,-240.56211982,0.0003589,5]
[321948458,1712647846249,-528.39,0.0003589,5]
[321948460,1712647846259,-500.0,0.0003589,5]
[321948462,1712647846270,-500.0,0.0003589,5]
[321948465,1712647846281,-500.0,0.0003589,5]
[321948468,1712647846291,-1291.8,0.0003589,5]
[321948470,1712647846300,-6191.61,0.0003589,5]
[321948471,1712647846310,-500.0,0.0003589,5]
[321948473,1712647846320,-500.0,0.0003589,5]
[321948475,1712647846330,-500.0,0.0003589,5]
[321948477,1712647846341,-1121.17,0.0003589,5]
[321948479,1712647846350,-2705.2,0.0003589,5]
[321948481,1712647846360,-500.0,0.0003589,5]
[321948483,1712647846370,-400.75438426,0.0003589,5]
[321948485,1712647846379,-500.0,0.0003589,5]
[321948487,1712647846388,-500.0,0.0003589,5]
[321948489,1712647846398,-500.0,0.0003589,5]
[321948490,1712647846408,-500.0,0.0003589,5]
[321948492,1712647846418,-1220.29,0.0003589,5]
[321948494,1712647846427,-1039.55,0.0003589,5]
[321948496,1712647846439,-500.0,0.0003589,5]
[321948498,1712647846449,-500.0,0.0003589,5]
[321948500,1712647846458,-1529.84,0.0003589,5]
[321948502,1712647846467,-502.37,0.0003589,5]
[321948504,1712647846477,-500.0,0.0003589,5]
[321948506,1712647846487,-507.55211452,0.0003589,5]
[321948508,1712647846496,-762.12,0.0003589,5]
[321948510,1712647846506,-580.11419855,0.0003589,5]
[321948512,1712647846516,-776.05,0.0003589,5]
[321948514,1712647846525,-1902.17,0.0003589,5]
[321948516,1712647846534,-500.0,0.0003589,5]
[321948518,1712647846544,-500.0,0.0003589,5]
[321948520,1712647846554,-501.53891085,0.0003589,5]
[321948522,1712647846563,-1603.08,0.0003589,5]
[321948524,1712647846573,-999.66,0.0003589,5]
[321948526,1712647846583,-500.0,0.0003589,5]
[321948528,1712647846593,-500.0,0.0003589,5]
[321948530,1712647846602,-1713.43,0.0003589,5]
[321948532,1712647846613,-500.0,0.0003589,5]
[321948534,1712647846623,-500.0,0.0003589,5]
[321948536,1712647846632,-500.0,0.0003589,5]
[321948538,1712647846642,-500.0,0.0003589,5]
[321948539,1712647846652,-2920.22,0.0003589,5]
[321948541,1712647846661,-500.0,0.0003589,5]
[321948543,1712647846670,-500.0,0.0003589,5]
[321948545,1712647846682,-500.0,0.0003589,5]
[321948547,1712647846691,-500.0,0.0003589,5]
[321948549,1712647846705,-500.0,0.0003589,5]
[321948551,1712647846714,-2487.52,0.0003589,5]
[321948553,1712647846724,-1409.01,0.0003589,5]
[321948555,1712647846735,-500.0,0.0003589,5]
[321948557,1712647846746,-2391.85,0.0003589,5]
[321948559,1712647846756,-500.0,0.0003589,5]
[321948561,1712647846766,-500.0,0.0003589,5]
[321948563,1712647846775,-500.0,0.0003589,5]
[321948565,1712647846785,-1446.98,0.0003589,5]
[321948567,1712647846794,-500.0,0.0003589,5]
[321948569,1712647846803,-500.0,0.0003589,5]
[321948571,1712647846814,-500.0,0.0003589,5]
[321948573,1712647846824,-608.04,0.0003589,5]
[321948575,1712647846834,-606.26,0.0003589,5]
[321948577,1712647846844,-17867.71,0.0003589,5]
[321948578,1712647846854,-500.0,0.0003589,5]
[321948580,1712647846864,-163.97379358,0.0003589,5]
[321948582,1712647846873,-225.49441251,0.0003589,5]
[321948584,1712647846884,-500.0,0.0003589,5]
[321948586,1712647846893,-582.51,0.0003589,5]
[321948588,1712647846903,-500.0,0.0003589,5]
[321948590,1712647846913,-1209.87,0.0003589,5]
[321948592,1712647846922,-500.0,0.0003589,5]
[321948594,1712647846935,-500.0,0.0003589,5]
[321948596,1712647846945,-1182.96,0.0003589,5]
[321948598,1712647846955,-3423.85,0.0003589,5]
[321948600,1712647846964,-500.0,0.0003589,5]
[321948602,1712647846974,-500.0,0.0003589,5]
[321948604,1712647846983,-13819.27,0.0003589,5]
[321948606,1712647846992,-502.44818286,0.0003589,5]
[321948608,1712647847002,-500.0,0.0003589,5]
[321948610,1712647847011,-500.0,0.0003589,5]
[321948612,1712647847020,-309.82221017,0.0003589,5]
[321948614,1712647847029,-569.23,0.0003589,5]
[321948616,1712647847040,-5343.66,0.0003589,5]
[321948618,1712647847049,-500.0,0.0003589,5]
[321948620,1712647847058,-500.0,0.0003589,5]
[321948622,1712647847067,-500.0,0.0003589,5]
[321948624,1712647847077,-500.0,0.0003589,5]
[321948626,1712647847086,-500.0,0.0003589,5]
[321948628,1712647847095,-752.41,0.0003589,5]
[321948630,1712647847104,-500.0,0.0003589,5]
[321948632,1712647847113,-501.15405258,0.0003589,5]
[321948634,1712647847122,-441.46129472,0.0003589,5]
[321948636,1712647847133,-500.0,0.0003589,5]
[321948637,1712647847142,-1700.2,0.0003589,5]
[321948638,1712647847152,-243.84336101,0.0003589,5]
[321948640,1712647847162,-500.0,0.0003589,5]
[321948642,1712647847171,-500.0,0.0003589,5]
[321948644,1712647847182,-502.23,0.0003589,5]
[321948646,1712647847191,-500.0,0.0003589,5]
[321948647,1712647847200,-2026.45,0.0003589,5]
[321948648,1712647847210,-500.0,0.0003589,5]
[321948649,1712647847220,-500.0,0.0003589,5]
[321948650,1712647847231,-500.0,0.0003589,5]
[321948651,1712647847240,-619.46392019,0.0003589,5]
[321948652,1712647847249,-166.666666,0.00035954,2]
[321948653,1712647847259,-500.0,0.00036,2]
[321948654,1712647847269,-403.36778013,0.00036088,2]
[321948655,1712647847278,-500.0,0.00036161,5]
[321948656,1712647847287,-293.86379053,0.00036162,4]
[321948657,1712647847297,-2698.11486727,0.00036162,4]
[321948658,1712647847307,-2577.89649192,0.00036162,4]
[321948659,1712647847316,-500.0,0.00036163,5]
[321948660,1712647847324,-500.0,0.00036163,5]
[321948661,1712647847334,-500.0,0.00036163,5]
[321948662,1712647847343,-501.61455761,0.00036164,5]
[321948663,1712647847354,-500.0,0.00036164,5]
[321948664,1712647847363,-500.0,0.00036164,5]
[321948665,1712647847374,-500.0,0.00036164,5]
[321948666,1712647847384,-500.0,0.00036164,5]
[321948667,1712647847395,-500.0,0.00036164,5]
[321948668,1712647847406,-500.0,0.00036164,5]
[321948669,1712647847416,-500.0,0.00036164,5]
[321948670,1712647847426,-500.0,0.00036164,5]
[321948671,1712647847439,-797.16,0.00036164,5]
[321948672,1712647847451,-247.00310956,0.00036164,5]
[321948673,1712647847461,-500.0,0.00036164,5]
[321948674,1712647847470,-500.0,0.00036164,5]
[321948675,1712647847480,-500.0,0.00036164,5]
[321948676,1712647847490,-500.0,0.00036164,5]
[321948677,1712647847500,-500.0,0.00036164,5]
[321948678,1712647847510,-601.71274934,0.00036164,5]
[321948679,1712647847521,-500.0,0.00036164,5]
[321948680,1712647847530,-500.91529163,0.00036164,5]
[321948681,1712647847540,-500.0,0.00036164,5]
[321948682,1712647847552,-500.0,0.00036164,5]
[321948683,1712647847562,-500.0,0.00036164,5]
[321948684,1712647847572,-500.0,0.00036164,5]
[321948685,1712647847583,-500.0,0.00036164,5]
[321948686,1712647847593,-500.0,0.00036164,5]
[321948688,1712647847602,-500.0,0.00036164,5]
[321948690,1712647847612,-510.87924336,0.00036164,5]
[321948692,1712647847622,-500.0,0.00036164,5]
[321948694,1712647847632,-500.0,0.00036164,5]
[321948696,1712647847641,-500.75401144,0.00036164,5]
[321948698,1712647847651,-500.0,0.00036164,5]
[321948700,1712647847660,-501.91681844,0.00036164,5]
[321948702,1712647847670,-501.25116078,0.00036164,5]
[321948704,1712647847683,-835.92,0.00036164,2]
[321948706,1712647847693,-500.0,0.00036164,5]
[321948708,1712647847702,-618.91974409,0.00036164,5]
[321948709,1712647847712,-500.0,0.00036164,5]
[321948712,1712647847726,-501.68952314,0.00036164,5]
[321948714,1712647847735,-525.74,0.00036164,5]
[321948715,1712647847745,-684.42,0.00036164,5]
[321948717,1712647847754,-500.0,0.00036164,5]
[321948719,1712647847764,-617.87522792,0.00036164,5]
[321948721,1712647847773,-500.0,0.00036164,5]
[321948723,1712647847782,-500.0,0.00036164,5]
[321948725,1712647847792,-413.32184459,0.00036164,5]
[321948727,1712647847803,-500.0,0.00036164,5]
[321948729,1712647847812,-500.0,0.00036164,5]
[321948731,1712647847823,-361.07695492,0.00036164,5]
[321948733,1712647847833,-618.22,0.00036164,5]
[321948735,1712647847843,-547.7,0.00036164,5]
[321948737,1712647847852,-500.0,0.00036164,5]
[321948739,1712647847861,-1403.92,0.00036164,5]
[321948741,1712647847870,-500.0,0.00036164,5]
[321948743,1712647847880,-500.0,0.00036164,5]
[321948745,1712647847890,-647.24,0.00036164,5]
[321948747,1712647847899,-500.0,0.00036164,5]
[321948749,1712647847908,-500.0,0.00036164,5]
[321948750,1712647847917,-500.0,0.00036164,5]
[321948751,1712647847928,-500.0,0.00036164,5]
[321948752,1712647847940,-500.0,0.00036164,5]
[321948753,1712647847950,-500.0,0.00036164,5]
[321948754,1712647847959,-799.03,0.00036164,5]
[321948755,1712647847969,-500.0,0.00036164,5]
[321948756,1712647847978,-520.27,0.00036164,5]
[321948757,1712647847987,-500.0,0.00036164,5]
[321948759,1712647847996,-500.0,0.00036164,5]
[321948761,1712647848006,-500.0,0.00036164,5]
[321948763,1712647848015,-628.06593109,0.00036164,5]
[321948765,1712647848025,-500.0,0.00036164,5]
[321948767,1712647848035,-500.0,0.00036164,5]
[321948769,1712647848044,-670.95,0.00036164,5]
[321948771,1712647848054,-1078.43,0.00036164,5]
[321948773,1712647848064,-500.0,0.00036164,5]
[321948775,1712647848074,-2328.95,0.00036164,5]
[321948777,1712647848084,-500.0,0.00036164,5]
[321948779,1712647848094,-948.4,0.00036164,5]
[321948781,1712647848103,-500.0,0.00036164,5]
[321948783,1712647848113,-500.0,0.00036164,5]
[321948785,1712647848123,-785.42,0.00036164,5]
[321948795,1712647848215,-500.0,0.00036164,5]
[321948797,1712647848228,-500.0,0.00036164,5]
[321948799,1712647848238,-500.0,0.00036164,5]
[321948801,1712647848248,-134.50186871,0.00036164,5]
[321948818,1712647848404,-365.49813129,0.00036164,5]
[321948820,1712647848414,-500.0,0.00036164,5]
[321948822,1712647848423,-849.98,0.00036164,5]
[321948824,1712647848434,-607.43959411,0.00036164,5]
[321948826,1712647848444,-500.0,0.00036164,5]
[321948828,1712647848453,-1559.31,0.00036164,5]
[321948830,1712647848464,-500.0,0.00036164,5]
[321948832,1712647848473,-500.0,0.00036164,5]
[321948834,1712647848482,-500.0,0.00036164,5]
[321948836,1712647848491,-501.97,0.00036164,5]
[321948838,1712647848500,-500.0,0.00036164,5]
[321948840,1712647848509,-500.0,0.00036164,5]
[321948842,1712647848519,-500.0,0.00036164,5]
[321948844,1712647848528,-500.0,0.00036164,5]
[321948846,1712647848538,-500.0,0.00036164,5]
[321948848,1712647848547,-3071.26,0.00036164,5]
[321948849,1712647848556,-5313.74,0.00036164,5]
[321948851,1712647848566,-528.39,0.00036164,5]
[321948853,1712647848575,-500.0,0.00036164,5]
[321948855,1712647848584,-1291.8,0.00036164,5]
[321948857,1712647848594,-6191.61,0.00036164,5]
[321948859,1712647848603,-500.0,0.00036164,5]
[321948861,1712647848612,-1121.17,0.00036164,5]
[321948863,1712647848621,-2705.2,0.00036164,5]
[321948865,1712647848631,-500.0,0.00036164,5]
[321948867,1712647848640,-500.0,0.00036164,5]
[321948869,1712647848649,-500.0,0.00036164,5]
[321948872,1712647848659,-500.0,0.00036164,5]
[321948873,1712647848668,-1220.29,0.00036164,5]
[321948875,1712647848678,-1039.55,0.00036164,5]
[321948877,1712647848692,-500.0,0.00036164,5]
[321948879,1712647848702,-1529.84,0.00036164,5]
[321948882,1712647848712,-502.37,0.00036164,5]
[321948883,1712647848722,-500.0,0.00036164,5]
[321948885,1712647848732,-762.12,0.00036164,5]
[321948887,1712647848742,-776.05,0.00036164,5]
[321948890,1712647848752,-1902.17,0.00036164,5]
[321948891,1712647848762,-500.0,0.00036164,5]
[321948894,1712647848773,-1603.08,0.00036164,5]
[321948895,1712647848782,-999.66,0.00036164,5]
[321948897,1712647848792,-1713.43,0.00036164,5]
[321948899,1712647848801,-554.59692544,0.00036164,5]
[321948901,1712647848810,-500.0,0.00036164,5]
[321948903,1712647848819,-2920.22,0.00036164,5]
[321948905,1712647848829,-500.0,0.00036164,5]
[321948907,1712647848838,-500.0,0.00036164,5]
[321948909,1712647848848,-2487.52,0.00036164,5]
[321948911,1712647848858,-1409.01,0.00036164,5]
[321948913,1712647848868,-500.0,0.00036164,5]
[321948915,1712647848877,-2391.85,0.00036164,5]
[321948917,1712647848886,-500.0,0.00036164,5]
[321948919,1712647848895,-1446.98,0.00036164,5]
[321948921,1712647848904,-324.08311077,0.00036164,5]
[321948923,1712647848913,-608.04,0.00036164,5]
[321948925,1712647848922,-606.26,0.00036164,5]
[321948927,1712647848934,-10224.47727099,0.00036164,5]
[321948989,1712647849539,-211.40870572,0.00022966,2]
[321948991,1712647849548,-30560.71473675,0.00034999,4]
[321948993,1712647849557,-230.49890099,0.00035611,4]
[321948995,1712647849567,-290.38720189,0.00035613,4]
[321948997,1712647849577,-302.08670794,0.00035615,4]
[321948999,1712647849586,-842.22,0.00035616,2]
[321949001,1712647849594,-1263.05,0.00035616,2]
[321949003,1712647849604,-500.0,0.00035616,2]
[321949005,1712647849613,-500.0,0.0003589,5]
[321949007,1712647849622,-560.87,0.0003589,5]
[321949009,1712647849631,-500.0,0.0003589,5]
[321949011,1712647849641,-500.0,0.0003589,5]
[321949013,1712647849650,-1263.05,0.0003589,5]
[321949015,1712647849660,-842.22,0.0003589,5]
[321949017,1712647849669,-500.0,0.0003589,5]
[321949019,1712647849678,-7643.23272901,0.00036164,5]
[321949021,1712647849688,-500.0,0.00036164,5]
[321949023,1712647849697,-582.51,0.00036164,5]
[321949025,1712647849706,-1209.87,0.00036164,5]
[321949027,1712647849715,-500.0,0.00036164,5]
[321949029,1712647849724,-1182.96,0.00036164,5]
[321949030,1712647849734,-3423.85,0.00036164,5]
[321949032,1712647849745,-500.0,0.00036164,5]
[321949035,1712647849756,-13819.27,0.00036164,5]
[321949037,1712647849766,-500.0,0.00036164,5]
[321949038,1712647849776,-569.23,0.00036164,5]
[321949040,1712647849787,-5343.66,0.00036164,5]
[321949051,1712647849883,-500.0,0.00036164,5]
[321949053,1712647849893,-500.0,0.00036164,5]
[321949055,1712647849902,-500.0,0.00036164,5]
[321949057,1712647849912,-752.41,0.00036164,5]